[Event "Seniors-LEM-50 Sachsen-Anhalt 2024"]
[Site "Magdeburg"]
[Date "2024.07.04"]
[Round "4.12"]
[White "Meffert, Claudia"]
[Black "Langner, Hans-Rainer"]
[Result "1-0"]
[ECO "D93"]
[WhiteElo "1811"]
[BlackElo "1730"]
[Annotator "NA RC"]
[PlyCount "113"]
[EventDate "2024.06.25"]
[EventType "swiss"]
[EventCountry "GER"]
[SourceTitle "playchess.com"]
[Source "ChessBase"]
[SourceQuality "1"]
[TimeControl "40/5400+30:1800+30"]

1. d4 {[%emt 0:00:02]} Nf6 {[%emt 0:05:20]} 2. c4 {[%emt 0:00:07]} d5 {[%emt 0:00:25]} 3. Nc3 {[%emt 0:00:22]} g6 {[%emt 0:00:35]} 4. Nf3 {[%emt 0:01:33]} Bg7 {[%emt 0:00:44]} 5. Bf4 {[%emt 0:05:12]} c6 {[%emt 0:01:51]} 6. e3 {[%emt 0:02:05]} O-O {[%emt 0:01:28]} 7. h3 {[%emt 0:03:13]} Ne4 {[%emt 0:00:47]} 8. Bd3 {[%emt 0:01:13]} Qa5 {[%emt 0:01:50]} 9. Qc2 {[%emt 0:01:47]} f5 {[%emt 0:07:37]} 10. O-O {[%emt 0:01:47]} Nd7 {[%emt 0:00:39]} 11. cxd5 {[%emt 0:04:44]} Nxc3 {[%emt 0:01:52]} 12. dxc6 {[%emt 0:01:26]} Nd5 {[%emt 0:02:36]} 13. cxd7 {[%emt 0:00:44]} Bxd7 {[%emt 0:00:22]} 14. Be5 {[%emt 0:02:54]} Rac8 {[%emt 0:08:36]} 15. Qe2 {[%emt 0:06:56]} a6 {[%emt 0:05:09]} 16. Bc4 {[%emt 0:11:55]} e6 {[%emt 0:01:48]} 17. Rfc1 {[%emt 0:03:37]} Rc6 {[%emt 0:01:35]} 18. Bxg7 {[%emt 0:03:29]} Kxg7 {[%emt 0:00:35]} 19. Ne5 {[%emt 0:00:48]} Rc7 {[%emt 0:01:06]} 20. a3 {[%emt 0:05:37]} b5 {[%emt 0:09:31]} 21. Bxd5 {[%emt 0:01:27]} exd5 {[%emt 0:00:45]} 22. Rc5 {[%emt 0:05:12]} Be6 {[%emt 0:03:03]} 23. b4 {[%emt 0:02:52]} Qb6 {[%emt 0:00:38]} 24. Rac1 {[%emt 0:01:14]} Rfc8 {[%emt 0:02:51]} 25. Qc2 {[%emt 0:06:07]} Rxc5 {[%emt 0:01:12]} 26. dxc5 {[%emt 0:01:14]} Qd8 {[%emt 0:03:15]} 27. Qc3 {[%emt 0:02:33]} Kg8 {[%emt 0:01:41]} 28. Nf3 {[%emt 0:01:24]} Rc7 {[%emt 0:07:46]} 29. Qe5 {[%emt 0:02:59]} Re7 {[%emt 0:06:11]} 30. Nd4 {[%emt 0:04:07]} Qc8 {[%emt 0:03:49]} 31. c6 {[%emt 0:02:07]} Kf7 {[%emt 0:00:54]} 32. Nxe6 {[%emt 0:01:44]} Rxe6 {[%emt 0:01:19]} 33. Qxd5 {[%emt 0:00:20]} Qc7 {[%emt 0:05:20]} 34. g4 {[%emt 0:03:50]} fxg4 {[%emt 0:00:37]} 35. hxg4 {[%emt 0:00:12]} Ke7 {[%emt 0:00:16]} 36. Qc5+ {[%emt 0:01:01]} Kf7 {[%emt 0:01:00]} 37. Kg2 {[%emt 0:02:16]} Re5 {[%emt 0:01:30]} 38. Qd4 {[%emt 0:00:46]} Ke6 {[%emt 0:02:05]} 39. f4 {[%emt 0:01:11]} Rd5 {[%emt 0:01:03]} 40. Qc3 {[%emt 0:01:08]} h5 {[%emt 0:06:47]} 41. g5 {[%emt 0:31:48]} Kf5 {[%emt 0:34:01]} 42. Kg3 {[%emt 0:00:46]} Ke4 {[%emt 0:00:00]} 43. Qc2+ {[%emt 0:00:00]} Rd3 {[%emt 0:00:00]} 44. Kf2 {[%emt 0:00:00]} Qb6 {[%emt 0:00:00]} 45. Re1 {[%emt 0:00:00]} Qc7 {[%emt 0:00:00]} 46. Rd1 {[%emt 0:00:00]} Qd6 {[%emt 0:00:00]} 47. Qxd3+ {[%emt 0:00:00]} Qxd3 {[%emt 0:00:00]} 48. Rxd3 {[%emt 0:08:41]} Kxd3 {[%emt 0:04:01]} 49. c7 {[%emt 0:00:00]} h4 {[%emt 0:00:00]} 50. c8=Q {[%emt 0:00:00]} Kd2 {[%emt 0:00:00]} 51. Qd7+ {[%emt 0:00:00]} Kc2 {[%emt 0:00:00]} 52. e4 {[%emt 0:00:00]} Kc3 {[%emt 0:00:00]} 53. Ke2 {[%emt 0:00:00]} Kb2 {[%emt 0:00:00]} 54. Qd3 {[%emt 0:00:00]} Ka2 {[%emt 0:00:00]} 55. Kd2 {[%emt 0:00:00]} a5 {[%emt 0:00:00]} 56. Kc2 {[%emt 0:00:00]} a4 {[%emt 0:00:00]} 57. Qc3 {[%emt 0:00:00]} 1-0

[Event "Seniors-LEM-50 Sachsen-Anhalt 2024"]
[Site "Magdeburg"]
[Date "2024.07.04"]
[Round "4.13"]
[White "Gaertig, Johannes"]
[Black "Wahrenberg, Ralf"]
[Result "1-0"]
[ECO "A48"]
[WhiteElo "1687"]
[BlackElo "1873"]
[Annotator "NA RC"]
[PlyCount "161"]
[EventDate "2024.06.25"]
[EventType "swiss"]
[EventCountry "GER"]
[SourceTitle "playchess.com"]
[Source "ChessBase"]
[SourceQuality "1"]
[TimeControl "40/5400+30:1800+30"]

1. d4 {[%emt 0:00:09]} Nf6 {[%emt 0:01:29]} 2. Nf3 {[%emt 0:00:16]} g6 {[%emt 0:00:09]} 3. Bf4 {[%emt 1:31:35]} d6 {[%emt 1:30:22]} 4. e3 {[%emt 0:00:00]} Bg7 {[%emt 0:00:00]} 5. Bd3 {[%emt 0:00:00]} O-O {[%emt 0:00:00]} 6. O-O {[%emt 0:00:00]} Nfd7 {[%emt 0:00:00]} 7. c3 {[%emt 0:00:00]} c6 {[%emt 0:00:00]} 8. Nbd2 {[%emt 0:00:00]} h6 {[%emt 0:00:00]} 9. Qc2 {[%emt 0:00:00]} Kh7 {[%emt 0:00:00]} 10. Nh4 {[%emt 0:00:00]} f5 {[%emt 0:00:00]} 11. Ndf3 {[%emt 0:00:00]} e5 {[%emt 0:00:00]} 12. Nxf5 {[%emt 0:00:00]} exf4 {[%emt 0:00:00]} 13. Nxd6 {[%emt 0:05:00]} Qf6 {[%emt 0:05:00]} 14. Ne4 {[%emt 0:00:00]} Qe7 {[%emt 0:00:00]} 15. Rae1 {[%emt 0:00:00]} Nb6 {[%emt 0:00:00]} 16. Nc5 {[%emt 0:00:00]} Qd6 {[%emt 0:00:00]} 17. Nh4 {[%emt 0:00:00]} Bf5 $18 {[%emt 0:00:00]} 18. e4 {[%emt 0:00:00]} Qf6 {[%emt 0:00:00]} 19. Nxf5 {[%emt 0:00:00]} gxf5 {[%emt 0:00:00]} 20. exf5 {[%emt 0:00:00]} Kh8 {[%emt 0:00:00]} 21. Re6 {[%emt 0:00:00]} Qf7 {[%emt 0:00:00]} 22. Rfe1 {[%emt 0:00:00]} Nd5 {[%emt 0:00:00]} 23. Rg6 {[%emt 0:00:00]} Nd7 {[%emt 0:00:00]} 24. Ne6 {[%emt 0:00:00]} Rg8 {[%emt 0:00:00]} 25. Qe2 {[%emt 0:00:00]} N7f6 {[%emt 0:00:00]} 26. Nxg7 {[%emt 0:00:00]} Rxg7 {[%emt 0:00:00]} 27. Rxh6+ {[%emt 0:00:00]} Kg8 {[%emt 0:00:00]} 28. Rg6 {[%emt 0:00:00]} Re8 {[%emt 0:00:00]} 29. Rxg7+ {[%emt 0:00:00]} Kxg7 {[%emt 0:00:00]} 30. Qd2 {[%emt 0:00:00]} b5 {[%emt 0:00:00]} 31. Rxe8 {[%emt 0:00:00]} Qxe8 {[%emt 0:00:00]} 32. c4 {[%emt 0:00:00]} bxc4 {[%emt 0:00:00]} 33. Bxc4 {[%emt 0:00:00]} Qe4 {[%emt 0:00:00]} 34. h3 {[%emt 0:00:00]} Qxf5 {[%emt 0:00:10]} 35. Bd3 {[%emt 0:00:00]} Qe6 {[%emt 0:02:04]} 36. Qa5 {[%emt 0:00:00]} Qd7 {[%emt 0:00:54]} 37. a4 {[%emt 0:00:00]} Kh6 {[%emt 0:01:58]} 38. b4 {[%emt 0:00:00]} f3 {[%emt 0:01:06]} 39. Qc5 {[%emt 0:00:00]} Qg7 {[%emt 0:01:49]} 40. g3 {[%emt 0:00:00]} Nf4 {[%emt 0:04:31]} 41. Bf1 {[%emt 0:02:17]} Ne6 {[%emt 0:18:31]} 42. Qe5 {[%emt 0:00:00]} Qf7 {[%emt 0:05:15]} 43. Qe3+ {[%emt 0:00:00]} Kg7 {[%emt 0:01:33]} 44. Bc4 {[%emt 0:00:00]} Nd5 {[%emt 0:00:21]} 45. Qe5+ {[%emt 0:00:00]} Qf6 {[%emt 0:01:51]} 46. Bxd5 {[%emt 0:00:00]} Qxe5 {[%emt 0:00:29]} 47. dxe5 {[%emt 0:00:00]} cxd5 {[%emt 0:00:02]} 48. Kf1 {[%emt 0:00:00]} Nd4 {[%emt 0:01:44]} 49. Ke1 {[%emt 0:00:00]} Nc2+ {[%emt 0:00:10]} 50. Kd2 {[%emt 0:00:00]} Nxb4 {[%emt 0:00:58]} 51. Ke3 {[%emt 0:00:00]} Kg6 {[%emt 0:00:15]} 52. Kxf3 {[%emt 0:00:00]} Kf5 {[%emt 0:00:12]} 53. Ke3 {[%emt 0:00:00]} Kxe5 {[%emt 0:00:19]} 54. f4+ {[%emt 0:00:00]} Kd6 {[%emt 0:00:47]} 55. h4 {[%emt 0:00:00]} Nc2+ {[%emt 0:00:31]} 56. Kd3 {[%emt 0:00:00]} Nb4+ {[%emt 0:00:03]} 57. Kc3 {[%emt 0:00:00]} Nc6 {[%emt 0:00:09]} 58. g4 {[%emt 0:00:00]} Ke6 {[%emt 0:00:12]} 59. h5 {[%emt 0:00:00]} Kf6 {[%emt 0:00:17]} 60. Kd3 {[%emt 0:00:00]} Kf7 {[%emt 0:01:24]} 61. g5 {[%emt 0:00:00]} Kg7 {[%emt 0:00:31]} 62. a5 {[%emt 0:00:00]} Kh7 {[%emt 0:00:26]} 63. f5 {[%emt 0:00:00]} Ne5+ {[%emt 0:00:29]} 64. Kd4 {[%emt 0:00:00]} Nf3+ {[%emt 0:00:02]} 65. Kxd5 {[%emt 0:00:00]} Nxg5 {[%emt 0:06:57]} 66. Kc6 {[%emt 0:00:00]} Nf7 {[%emt 0:00:00]} 67. Kb7 {[%emt 0:00:00]} Nd8+ {[%emt 0:00:00]} 68. Kxa7 {[%emt 0:00:00]} Nc6+ {[%emt 0:00:00]} 69. Kb6 {[%emt 0:00:00]} Nxa5 {[%emt 0:00:00]} 70. Kxa5 {[%emt 0:00:00]} Kg7 {[%emt 0:00:00]} 71. Kb5 {[%emt 0:00:00]} Kf6 {[%emt 0:00:00]} 72. h6 {[%emt 0:00:00]} Kf7 {[%emt 0:00:00]} 73. Kc5 {[%emt 0:00:00]} Kg8 {[%emt 0:00:00]} 74. Kd5 {[%emt 0:00:00]} Kh7 {[%emt 0:00:00]} 75. Ke6 {[%emt 0:00:00]} Kg8 {[%emt 0:01:49]} 76. Ke7 {[%emt 0:00:00]} Kh7 {[%emt 0:00:52]} 77. f6 {[%emt 0:00:00]} Kh8 {[%emt 0:01:41]} 78. f7 {[%emt 0:00:00]} Kh7 {[%emt 0:00:06]} 79. Kf6 {[%emt 0:00:00]} Kh8 {[%emt 0:00:07]} 80. f8=Q+ {[%emt 1:01:13]} Kh7 {[%emt 0:02:55]} 81. Qg7# {[%emt 0:00:00]} 1-0

[Event "Seniors-LEM-50 Sachsen-Anhalt 2024"]
[Site "Magdeburg"]
[Date "2024.07.04"]
[Round "4.14"]
[White "Buciu, Aurel-John"]
[Black "Schomann, Michael"]
[Result "1-0"]
[ECO "D03"]
[WhiteElo "1807"]
[BlackElo "1777"]
[Annotator "NA RC"]
[PlyCount "95"]
[EventDate "2024.06.25"]
[EventType "swiss"]
[EventCountry "GER"]
[SourceTitle "playchess.com"]
[Source "ChessBase"]
[SourceQuality "1"]
[TimeControl "40/5400+30:1800+30"]

1. d4 {[%emt 0:00:17]} d5 {[%emt 0:00:05]} 2. Bf4 {[%emt 0:00:52]} Nf6 {[%emt 0:00:11]} 3. Nf3 {[%emt 0:00:47]} e6 {[%emt 0:00:13]} 4. e3 {[%emt 0:00:27]} c5 {[%emt 0:02:19]} 5. c3 {[%emt 0:01:04]} Nc6 {[%emt 0:01:30]} 6. Bd3 {[%emt 0:01:02]} cxd4 {[%emt 0:01:46]} 7. exd4 {[%emt 0:01:17]} Bd6 {[%emt 0:02:49]} 8. Bg5 {[%emt 0:00:41]} h6 {[%emt 0:01:32]} 9. Bh4 {[%emt 0:00:05]} Be7 {[%emt 0:00:48]} 10. Nbd2 {[%emt 0:00:28]} O-O {[%emt 0:00:50]} 11. O-O {[%emt 0:01:29]} Bd7 {[%emt 0:05:12]} 12. Re1 {[%emt 0:02:15]} Re8 {[%emt 0:07:32]} 13. Ne5 {[%emt 0:03:15]} Rc8 {[%emt 0:04:22]} 14. Qf3 {[%emt 0:11:08]} Rf8 {[%emt 0:02:50]} 15. h3 {[%emt 0:07:01]} Nh7 {[%emt 0:09:20]} 16. Bg3 {[%emt 0:07:25]} Bf6 {[%emt 0:05:19]} 17. Nb3 {[%emt 0:06:58]} Nxe5 {[%emt 0:06:55]} 18. Bxe5 {[%emt 0:01:49]} Bxe5 {[%emt 0:03:43]} 19. Rxe5 {[%emt 0:02:30]} Ng5 {[%emt 0:01:11]} 20. Qg3 {[%emt 0:04:12]} f6 {[%emt 0:00:51]} 21. Re2 {[%emt 0:02:22]} Qc7 {[%emt 0:02:45]} 22. Qxc7 {[%emt 0:05:00]} Rxc7 {[%emt 0:00:07]} 23. Nc5 {[%emt 0:00:34]} Re8 {[%emt 0:02:50]} 24. Nxd7 {[%emt 0:02:20]} Rxd7 {[%emt 0:00:21]} 25. Bb5 {[%emt 0:00:47]} Rde7 {[%emt 0:00:28]} 26. Bxe8 {[%emt 0:00:53]} Rxe8 {[%emt 0:00:05]} 27. f3 {[%emt 0:01:31]} Kf7 {[%emt 0:01:12]} 28. Rae1 {[%emt 0:01:26]} Nh7 {[%emt 0:00:54]} 29. f4 {[%emt 0:02:01]} Re7 {[%emt 0:02:17]} 30. f5 {[%emt 0:03:42]} Ng5 {[%emt 0:00:25]} 31. fxe6+ {[%emt 0:01:57]} Rxe6 {[%emt 0:00:17]} 32. Rxe6 {[%emt 0:00:46]} Nxe6 {[%emt 0:00:06]} 33. Kf2 {[%emt 0:02:35]} Ng5 {[%emt 0:00:59]} 34. Re2 {[%emt 0:04:21]} Ne4+ {[%emt 0:01:15]} 35. Kf3 {[%emt 0:01:40]} f5 {[%emt 0:00:09]} 36. Kf4 {[%emt 0:01:41]} Kf6 {[%emt 0:02:09]} 37. g4 {[%emt 0:03:07]} g6 {[%emt 0:01:34]} 38. h4 {[%emt 0:04:39]} h5 {[%emt 0:02:23]} 39. gxh5 {[%emt 0:02:31]} gxh5 {[%emt 0:00:27]} 40. Rg2 {[%emt 0:01:00]} b5 {[%emt 0:02:42]} 41. Rg8 {[%emt 0:31:55]} a5 {[%emt 0:30:27]} 42. Rb8 {[%emt 0:01:00]} Nd6 {[%emt 0:02:52]} 43. Rb6 {[%emt 0:00:41]} Ke7 {[%emt 0:00:16]} 44. Rxd6 {[%emt 0:01:16]} Kxd6 {[%emt 0:00:44]} 45. Kxf5 {[%emt 0:00:02]} b4 {[%emt 0:00:37]} 46. cxb4 {[%emt 0:04:02]} axb4 {[%emt 0:00:17]} 47. b3 {[%emt 0:00:19]} Kd7 {[%emt 0:04:24]} 48. Ke5 {[%emt 0:00:34]} 1-0

[Event "Seniors-LEM-50 Sachsen-Anhalt 2024"]
[Site "Magdeburg"]
[Date "2024.07.04"]
[Round "4.15"]
[White "Schoknecht, Sabine"]
[Black "Ehrich, Dieter"]
[Result "1/2-1/2"]
[ECO "A01"]
[WhiteElo "1836"]
[BlackElo "1719"]
[Annotator "NA RC"]
[PlyCount "60"]
[EventDate "2024.06.25"]
[EventType "swiss"]
[EventCountry "GER"]
[SourceTitle "playchess.com"]
[Source "ChessBase"]
[SourceQuality "1"]
[TimeControl "40/5400+30:1800+30"]

1. b3 {[%emt 0:00:18]} d5 {[%emt 0:02:17]} 2. Bb2 {[%emt 0:00:10]} Nc6 {[%emt 0:01:11]} 3. d3 {[%emt 0:00:57]} Nf6 {[%emt 0:05:12]} 4. Nf3 {[%emt 0:00:21]} Bg4 {[%emt 0:00:57]} 5. h3 {[%emt 0:00:19]} Bxf3 {[%emt 0:00:54]} 6. exf3 {[%emt 0:00:18] A01: Nimzowitsch-Larsen Opening.} e6 {[%emt 0:02:31]} 7. Nd2 {[%emt 0:00:58]} Bd6 {[%emt 0:03:20]} 8. Be2 {[%emt 0:00:30]} O-O {[%emt 0:02:18]} 9. g3 {[%emt 0:02:56]} e5 {[%emt 0:01:59]} 10. a3 {[%emt 0:01:31]} a5 {[%emt 0:02:26]} 11. Nf1 {[%emt 0:01:12]} Nd4 {[%emt 0:01:04]} 12. Qd2 {[%emt 0:01:11]} c5 {[%emt 0:02:58]} 13. Ne3 {[%emt 0:03:00]} b5 {[%emt 0:03:49]} 14. Bxd4 {[%emt 0:03:33]} exd4 {[%emt 0:01:32]} 15. Nf5 {[%emt 0:00:44]} Nh5 {[%emt 0:06:03]} 16. f4 {[%emt 0:01:02]} Nf6 {[%emt 0:01:30]} 17. g4 {[%emt 0:00:49]} Qc7 {[%emt 0:05:27]} 18. Nxd6 {[%emt 0:03:17]} Qxd6 {[%emt 0:00:04]} 19. g5 {[%emt 0:00:34]} Nd7 {[%emt 0:01:52]} 20. h4 {[%emt 0:05:55]} f5 {[%emt 0:02:20]} 21. Bh5 {[%emt 0:11:59]} c4 $11 {[%emt 0:09:11]} 22. dxc4 {[%emt 0:05:11]} dxc4 {[%emt 0:00:26]} 23. bxc4 {[%emt 0:01:38]} bxc4 {[%emt 0:01:15]} 24. O-O {[%emt 0:01:00]} g6 {[%emt 0:00:40]} 25. Bf3 {[%emt 0:05:04]} Rad8 {[%emt 0:01:36]} 26. Rfd1 {[%emt 0:05:20]} Nb6 {[%emt 0:03:02]} 27. Rab1 {[%emt 0:03:45]} Na4 {[%emt 0:03:59]} 28. Rb5 {[%emt 0:15:11]} Nc3 {[%emt 0:04:22]} 29. Rxa5 {[%emt 0:00:18]} Nxd1 {[%emt 0:02:02]} 30. Bd5+ {[%emt 0:00:32]} Qxd5 {[%emt 0:03:06]} 1/2-1/2